[Event "Reykjavik Open 2022"]
[Site "Reykjavik"]
[Date "2022.04.10"]
[Round "6.56"]
[White "Anand, Vignesh"]
[Black "Garbuz, Vitaliy"]
[Result "1/2-1/2"]
[ECO "D31"]
[WhiteElo "1882"]
[BlackElo "2122"]
[Annotator "NA RC"]
[PlyCount "52"]
[EventDate "2022.04.06"]
[EventCountry "ISL"]
[SourceTitle "playchess.com"]
[Source "ChessBase"]
[SourceQuality "1"]
[TimeControl "40/5400+30:1800+30"]

1. c4 {[%emt 0:00:01]} e6 {[%emt 0:20:07]} 2. Nc3 {[%emt 0:00:28]} d5 {[%emt 0:00:54]} 3. d4 {[%emt 0:00:13]} a6 {[%emt 0:02:29]} 4. cxd5 {[%emt 0:01:29]} exd5 {[%emt 0:00:08]} 5. Qb3 {[%emt 0:00:17]} c6 {[%emt 0:00:50]} 6. Nf3 {[%emt 0:01:50]} Be7 {[%emt 0:02:00]} 7. Bf4 {[%emt 0:03:56]} Nf6 {[%emt 0:00:45]} 8. h3 {[%emt 0:01:36]} O-O {[%emt 0:01:30]} 9. e3 {[%emt 0:00:16]} Bd6 {[%emt 0:02:53]} 10. Ne5 {[%emt 0:04:10]} Re8 {[%emt 0:01:34]} 11. Bd3 {[%emt 0:01:51]} c5 {[%emt 0:12:48]} 12. Nxd5 {[%emt 0:24:29]} Bxe5 {[%emt 0:02:30]} 13. dxe5 {[%emt 0:00:03]} Nxd5 {[%emt 0:01:48]} 14. O-O-O {[%emt 0:00:19]} Nxf4 {[%emt 0:44:42]} 15. Bxh7+ {[%emt 0:00:27]} Kxh7 {[%emt 0:00:04]} 16. Rxd8 {[%emt 0:00:37]} Rxd8 {[%emt 0:01:37]} 17. exf4 {[%emt 0:00:11]} Kg8 {[%emt 0:00:21]} 18. f5 {[%emt 0:07:01]} Nc6 {[%emt 0:01:29]} 19. f6 {[%emt 0:03:48]} Nxe5 {[%emt 0:00:06]} 20. Qg3 {[%emt 0:00:46]} Nd3+ {[%emt 0:01:21]} 21. Kb1 {[%emt 0:03:04]} g6 {[%emt 0:00:04]} 22. Qe3 {[%emt 0:09:05]} Bf5 {[%emt 0:00:56]} 23. g4 {[%emt 0:00:24]} Ne1+ {[%emt 0:00:32]} 24. Kc1 {[%emt 0:01:17]} Nd3+ {[%emt 0:00:10]} 25. Kb1 {[%emt 0:01:20]} Ne1+ {[%emt 0:00:12]} 26. Kc1 {[%emt 0:00:31]} Nd3+ {[%emt 0:00:03]} 1/2-1/2

[Event "Reykjavik Open 2022"]
[Site "Reykjavik"]
[Date "2022.04.10"]
[Round "6.57"]
[White "Karlsson, Mikael Johann"]
[Black "Haugen, Lars Tormod"]
[Result "1-0"]
[ECO "A37"]
[WhiteElo "2119"]
[BlackElo "1710"]
[Annotator "NA RC"]
[PlyCount "71"]
[EventDate "2022.04.06"]
[EventCountry "ISL"]
[SourceTitle "playchess.com"]
[Source "ChessBase"]
[SourceQuality "1"]
[TimeControl "40/5400+30:1800+30"]

1. c4 {[%emt 0:01:23]} c5 {[%emt 0:03:23]} 2. Nc3 {[%emt 0:00:00]} Nc6 {[%emt 0:00:43]} 3. g3 {[%emt 0:00:00]} g6 {[%emt 0:00:09]} 4. Bg2 {[%emt 0:00:00]} Bg7 {[%emt 0:00:06]} 5. Nf3 {[%emt 0:00:00]} e6 {[%emt 0:00:58]} 6. d3 {[%emt 0:00:00]} Nge7 {[%emt 0:00:20]} 7. Bg5 {[%emt 0:00:00]} h6 {[%emt 0:01:08]} 8. Bd2 {[%emt 0:00:00]} O-O {[%emt 0:01:29]} 9. O-O {[%emt 0:00:07]} d5 {[%emt 0:02:08]} 10. cxd5 {[%emt 0:00:05]} exd5 {[%emt 0:01:22]} 11. Qc1 {[%emt 0:04:48]} Kh7 {[%emt 0:04:05]} 12. Rb1 {[%emt 0:03:42]} b6 {[%emt 0:06:05]} 13. Na4 {[%emt 0:04:25]} Bb7 {[%emt 0:09:19]} 14. b4 {[%emt 0:01:17]} cxb4 {[%emt 0:03:38]} 15. Bxb4 {[%emt 0:03:08]} Nxb4 {[%emt 0:01:56]} 16. Rxb4 {[%emt 0:00:05]} Qd7 {[%emt 0:11:41]} 17. Qd1 {[%emt 0:01:42]} d4 {[%emt 0:02:06]} 18. Rb1 {[%emt 0:08:14]} Nd5 {[%emt 0:01:29]} 19. Qb3 {[%emt 0:04:49]} Rfe8 {[%emt 0:19:42]} 20. Nc5 {[%emt 0:12:16]} Qe7 {[%emt 0:13:42]} 21. Nxb7 {[%emt 0:00:10]} Qxb7 {[%emt 0:00:07]} 22. Ng5+ {[%emt 0:00:17]} hxg5 {[%emt 0:01:21]} 23. Bxd5 {[%emt 0:00:00]} Qe7 {[%emt 0:01:37]} 24. Bxa8 {[%emt 0:00:10]} Rxa8 {[%emt 0:00:04]} 25. Rb2 {[%emt 0:01:48]} Be5 {[%emt 0:02:52]} 26. Qd5 {[%emt 0:03:30]} Rd8 {[%emt 0:00:56]} 27. Qe4 {[%emt 0:01:50]} f5 {[%emt 0:01:27]} 28. Qc6 {[%emt 0:02:00]} Bd6 {[%emt 0:02:59]} 29. Rc2 {[%emt 0:01:20]} Bc5 {[%emt 0:00:12]} 30. Rb1 {[%emt 0:01:01]} g4 {[%emt 0:01:10]} 31. Rb5 {[%emt 0:02:02]} Rd6 {[%emt 0:01:01]} 32. Qc8 {[%emt 0:01:04]} Rd8 {[%emt 0:00:45]} 33. Qc6 {[%emt 0:00:58]} Rd6 {[%emt 0:00:16]} 34. Qg2 {[%emt 0:00:18]} Re6 {[%emt 0:00:19]} 35. Rcxc5 {[%emt 0:02:27]} bxc5 {[%emt 0:00:15]} 36. Rb7 {[%emt 0:01:23]} 1-0

[Event "Reykjavik Open 2022"]
[Site "Reykjavik"]
[Date "2022.04.10"]
[Round "7.1"]
[White "Andersen, Mads"]
[Black "Praggnanandhaa R"]
[Result "1/2-1/2"]
[ECO "B22"]
[WhiteElo "2570"]
[BlackElo "2612"]
[Annotator "TA"]
[PlyCount "32"]
[EventDate "2022.04.06"]
[EventCountry "ISL"]
[SourceTitle "playchess.com"]
[Source "ChessBase"]
[SourceQuality "1"]
[TimeControl "40/5400+30:1800+30"]

{[%evp 20,32,0,0,6,0,0,0,0,0,0,0,0,0,-2]} 1. e4 {[%emt 0:01:32][%cal Be2e4,Be4e5][%mdl 32]} c5 {[%emt 0:01:57]} 2. c3 {[%emt 0:00:24]} Nf6 {[%emt 0:01:40]} 3. e5 {[%emt 0:00:12]} Nd5 {[%emt 0:00:06]} 4. Nf3 {[%emt 0:00:07]} d6 {[%emt 0:02:45]} 5. exd6 {[%emt 0:00:36]} e6 {[%emt 0:01:05]} 6. g3 {[%emt 0:00:24]} Bxd6 {[%emt 0:00:41]} 7. Bg2 {[%emt 0:00:12]} Nc6 {[%emt 0:02:02]} 8. O-O {[%emt 0:05:52]} O-O {[%emt 0:00:55]} 9. d4 {[%emt 0:00:08]} cxd4 {[%emt 0:03:04]} 10. Nxd4 {[%emt 0:00:48]} Nxd4 {[%emt 0:01:28]} 11. Qxd4 {[%emt 0:00:12] The position is equal.} Qc7 {[%emt 0:00:34] B22: Sicilian: 2 c3.} 12. c4 $1 {[%emt 0:00:38][%mdl 4] now scores much better than the old 12.Nd2.} Nf6 {[%emt 0:00:56]} 13. Nc3 {[%emt 0:00:25] [#] Black must now prevent Nb5.} Bd7 {[%emt 0:00:21]} 14. Nb5 {[%emt 0:00:25]} Bxb5 {[%emt 0:00:10]} 15. cxb5 {[%emt 0:00:06]} Rfd8 {[%emt 0:06:51][%cal Od6g3] [#] Strongly threatening ...Bxg3!} 16. Qd3 $146 {[%emt 0:07:19]} ({Predecessor:} 16. Qc3 Nd5 17. Qb3 Be5 18. Bg5 Rd7 19. Rfd1 h6 20. Rac1 Nc3 21. bxc3 Rxd1+ 22. Rxd1 hxg5 23. c4 Rc8 {½-½ (23) Vazquez,G (2545)-Santos Latasa,J (2640) Mexico City 2022}) 16... Rac8 {[%emt 0:15:51] An uneventful encounter.  Weighted Error Value: White=0.00 (flawless) /Black=0.00 (flawless)} 1/2-1/2

[Event "Reykjavik Open 2022"]
[Site "Reykjavik"]
[Date "2022.04.10"]
[Round "7.2"]
[White "Hjartarson, Johann"]
[Black "Warmerdam, Max"]
[Result "0-1"]
[ECO "E94"]
[WhiteElo "2470"]
[BlackElo "2607"]
[Annotator "TA"]
[PlyCount "72"]
[EventDate "2022.04.06"]
[EventCountry "ISL"]
[SourceTitle "playchess.com"]
[Source "ChessBase"]
[SourceQuality "1"]
[TimeControl "40/5400+30:1800+30"]

{[%evp 20,72,32,29,32,43,43,40,36,17,22,18,22,14,35,0,0,0,0,-3,0,-1,0,-8,0,0,0,0,0,0,-7,-41,-46,-297,-290,-308,-328,-301,-339,-294,-321,-319,-310,-314,-323,-321,-200,-383,-388,-508,-499,-485,-498,-587,-445]} 1. c4 {[%emt 0:00:03]} Nf6 {[%emt 0:02:04]} 2. Nc3 {[%emt 0:00:30]} g6 {[%emt 0:00:44]} 3. d4 {[%emt 0:00:46]} Bg7 {[%emt 0:00:15]} 4. e4 {[%emt 0:00:07]} d6 {[%emt 0:00:05]} 5. Nf3 {[%emt 0:01:21]} O-O {[%emt 0:01:05]} 6. Be2 {[%emt 0:00:19]} e5 {[%emt 0:00:05]} 7. O-O {[%emt 0:00:06]} exd4 {[%emt 0:01:51]} 8. Nxd4 {[%emt 0:00:08]} Re8 {[%emt 0:00:04]} 9. f3 {[%emt 0:00:23]} c6 {[%emt 0:00:05]} 10. Nc2 {[%emt 0:04:21]} Na6 {[%emt 0:00:06]} 11. Kh1 {[%emt 0:05:09]} h6 $5 {[%emt 0:00:23][%mdl 4] An interesting side line. E94: King's Indian: Classical: 6 Be2 e5 7 0-0: Various Black 7th moves.} 12. Be3 {[%emt 0:12:26]} (12. Qd2 {with more complications.} Nh5 13. Rd1 Qh4 14. Qe1) 12... d5 {[%emt 0:01:56] [#]} 13. exd5 $146 {[%emt 0:08:16]} ({Predecessor:} 13. cxd5 cxd5 14. exd5 Nb4 15. Nxb4 Rxe3 16. Qd2 Re8 17. Bb5 Re5 18. Nd3 Rg5 19. Bc4 {1-0 (29) Saric,A (2474)-Rykov,I (2334) Pula 2006}) 13... cxd5 {[%emt 0:00:59] White is slightly better.} 14. Bf2 {[%emt 0:08:06][%cal Rc4d5]} Nc7 {[%emt 0:23:06]} 15. c5 {[%emt 0:02:22]} Bd7 {[%emt 0:01:46]} (15... Nh5 {looks sharper.} 16. g3 Bh3 17. Re1 Qg5) 16. Qd2 {[%emt 0:01:13]} a5 {[%emt 0:00:52]} 17. Rfe1 {[%emt 0:01:52]} Bc6 {[%emt 0:02:43]} 18. Bf1 {[%emt 0:02:33]} Nd7 {[%emt 0:05:41][%cal Bf6d7,Bd7c5,Bc5d3][%mdl 32]} 19. Rxe8+ {[%emt 0:06:08]} Qxe8 {[%emt 0:00:05]} 20. Re1 {[%emt 0:00:20]} Qf8 {[%emt 0:06:12]} 21. Bg3 {[%emt 0:01:07]} Ne6 {[%emt 0:01:40]} 22. Bd6 {[%emt 0:02:02]} Qd8 {[%emt 0:01:08]} 23. Nxd5 {[%emt 0:00:36]} Ndxc5 {[%emt 0:00:54]} 24. Ne7+ {[%emt 0:00:36]} Kh7 {[%emt 0:02:39][%cal Oc6f3]} 25. Nxc6 {[%emt 0:02:59]} (25. Ne3 {feels hotter.} Bxb2 26. Qxb2 Qxd6 27. Ng4) 25... bxc6 {[%emt 0:00:09]} 26. b3 $2 {[%emt 0:07:33][%mdl 8192] [#] This move loses the game for White.} (26. Rd1 $15) 26... Ra7 $1 $19 {[%emt 0:01:07][%cal Ba8a7,Ba7d7,Bd7d3,Bd3d2,Bd2a2,Ba2a4][%mdl 32]} 27. Bf4 {[%emt 0:03:31]} Rd7 {[%emt 0:01:09]} 28. Qe3 {[%emt 0:02:02] [#]} Nd3 {[%emt 0:00:56] Inhibits Be5.} 29. Bxd3 {[%emt 0:00:14]} Rxd3 {[%emt 0:00:31]} 30. Qe4 {[%emt 0:00:22]} Nxf4 {[%emt 0:01:16]} 31. Qxf4 {[%emt 0:00:05]} Rd2 {[%emt 0:00:27]} 32. Ne3 {[%emt 0:08:54]} Rxa2 $40 {[%emt 0:00:31][%mdl 128] Threatens to win with ...Qd2. Black is out for blood.} 33. Nc4 $2 {[%emt 0:00:20]} ({Don't go for} 33. Qxf7 $2 Qd2 34. Rg1 Qxe3 $19) (33. h3) 33... Qd3 {[%emt 0:07:01]} 34. h3 {[%emt 0:02:05]} Qc2 {[%emt 0:01:36][%csl Ga2][%cal Rc2g2] Black is clearly winning.} 35. Rg1 {[%emt 0:01:25]} Qxb3 {[%emt 0:00:11]} 36. Ne5 {[%emt 0:00:16]} Ra4 {[%emt 0:03:47] Weighted Error Value: White=0.42/Black=0.05 (flawless)} 0-1

[Event "Reykjavik Open 2022"]
[Site "Reykjavik"]
[Date "2022.04.10"]
[Round "7.3"]
[White "Beerdsen, Thomas"]
[Black "Idani, Pouya"]
[Result "0-1"]
[ECO "B90"]
[WhiteElo "2508"]
[BlackElo "2621"]
[Annotator "TA"]
[PlyCount "68"]
[EventDate "2022.04.06"]
[EventCountry "ISL"]
[SourceTitle "playchess.com"]
[Source "ChessBase"]
[SourceQuality "1"]
[TimeControl "40/5400+30:1800+30"]

{[%evp 9,68,19,21,0,0,0,0,0,0,-23,0,-24,-27,-21,-14,-32,-26,-44,-35,-44,-48,-94,-101,-114,-95,-107,-106,-105,-111,-112,-102,-107,-74,-97,-54,-214,-212,-193,-189,-206,-198,-207,-194,-227,-207,-235,-249,-465,-454,-556,-581,-560,-570,-676,-663,-29969,-9455,-29974,-29976,-5732,-1505]} 1. e4 {[%emt 0:01:48]} c5 {[%emt 0:01:53]} 2. Nf3 {[%emt 0:00:06]} d6 {[%emt 0:00:04]} 3. d4 {[%emt 0:00:06]} cxd4 {[%emt 0:00:04]} 4. Nxd4 {[%emt 0:00:05]} Nf6 {[%emt 0:00:05]} 5. Nc3 {[%emt 0:00:05]} a6 {[%emt 0:00:01]} 6. h4 {[%emt 0:00:06] B90: Sicilian Najdorf: Unusual White 6th moves, 6 Be3 Ng4 and 6 Be3 e5.} e5 {[%emt 0:00:33]} 7. Nb3 {[%emt 0:00:15]} Be7 {[%emt 0:00:30]} 8. Be2 {[%emt 0:00:21] The position is equal.} b5 {[%emt 0:05:24]} 9. g4 {[%emt 0:00:24]} h6 {[%emt 0:01:20] [#]} 10. Rg1 $146 {[%emt 0:16:31] aiming for g5.} ({Predecessor:} 10. a4 b4 11. Nd5 Bb7 12. Be3 Nxd5 13. exd5 Nd7 14. Bf3 a5 15. Qd2 Nf6 16. Rg1 e4 {0-1 (46) Pandurevic,M (2177)-Zaja,I (2466) Hum na Sutli 2019}) 10... Bb7 $1 {[%emt 0:10:34]} 11. g5 {[%emt 0:13:37]} hxg5 {[%emt 0:00:17]} 12. hxg5 {[%emt 0:00:59]} Nxe4 {[%emt 0:00:19]} 13. Nxe4 {[%emt 0:02:32]} Bxe4 {[%emt 0:00:06]} 14. Bf3 {[%emt 0:02:03]} Bc6 {[%emt 0:09:35]} 15. Bd5 {[%emt 0:07:15]} (15. g6 $15) 15... g6 $17 {[%emt 0:04:22]} 16. Qf3 {[%emt 0:06:58][%csl LRc6,LRf7]} Bxd5 {[%emt 0:00:45]} 17. Qxd5 {[%emt 0:00:06]} Nd7 {[%emt 0:00:55][%cal Bb8d7,Bd7b6,Bb6c4][%mdl 32]} 18. Be3 {[%emt 0:07:21]} Rc8 {[%emt 0:00:48]} 19. O-O-O {[%emt 0:05:10]} Qc7 {[%emt 0:00:36][%csl Gc8][%cal Rc7c2]} 20. Qd2 {[%emt 0:06:58]} Rh4 {[%emt 0:13:23][%cal Od6d5]} 21. Kb1 {[%emt 0:03:30]} Nb6 {[%emt 0:01:16]} 22. Rh1 $2 {[%emt 0:13:49] This costs White the game.} (22. Qd3 $15) 22... Rxh1 {[%emt 0:04:07]} 23. Rxh1 {[%emt 0:00:06]} Nc4 {[%emt 0:00:06]} 24. Qd3 {[%emt 0:01:28]} Nxe3 {[%emt 0:02:56]} 25. fxe3 {[%emt 0:00:06]} Bxg5 {[%emt 0:11:43]} 26. Nd2 {[%emt 0:00:26]} Qc6 {[%emt 0:00:51]} 27. Rh8+ {[%emt 0:03:12]} Ke7 {[%emt 0:00:56]} 28. Rh7 {[%emt 0:01:05] [#]} (28. Rxc8 {was the only chance.} Qxc8 29. Ne4) 28... Bxe3 $1 $19 {[%emt 0:03:49][%mdl 512]} 29. Ne4 {[%emt 0:01:13] [#]} (29. a3 Bxd2) 29... d5 {[%emt 0:00:13][%cal Bd6d5,Bd5d4][%mdl 32]} 30. Nc3 {[%emt 0:02:23]} d4 {[%emt 0:01:05]} 31. Ne4 {[%emt 0:00:06]} Qc4 {[%emt 0:05:07] ( -> ...Qxd3)} 32. Qd1 {[%emt 0:00:54]} d3 {[%emt 0:00:17]} 33. Nc3 {[%emt 0:00:23]} dxc2+ {[%emt 0:00:13]} 34. Kxc2 {[%emt 0:00:21]} b4 {[%emt 0:00:57] Weighted Error Value: White=0.79/Black=0.03 (flawless)} 0-1

[Event "Reykjavik Open 2022"]
[Site "Reykjavik"]
[Date "2022.04.10"]
[Round "7.4"]
[White "Laurent-Paoli, Pierre"]
[Black "Gukesh D"]
[Result "1/2-1/2"]
[ECO "D38"]
[WhiteElo "2483"]
[BlackElo "2614"]
[Annotator "TA"]
[PlyCount "111"]
[EventDate "2022.04.06"]
[EventCountry "ISL"]
[SourceTitle "playchess.com"]
[Source "ChessBase"]
[SourceQuality "1"]
[TimeControl "40/5400+30:1800+30"]

{[%evp 15,111,24,25,19,31,8,72,0,2,-18,-9,-10,-10,-12,-15,-12,-10,-4,0,0,0,0,0,-12,-13,-8,-4,-28,-15,-23,-8,-16,0,0,0,0,0,0,-9,-23,-37,-43,-81,-103,0,-174,-21,-254,-242,-347,-163,-132,90,-12,0,-6,-7,-35,-15,-282,216,203,464,435,641,637,535,600,592,236,231,0,0,0,0,0,0,0,0,0,0,0,0,0,0,0,0,0,0,0,0,0,0,0,0,0,0,0]} 1. d4 {[%emt 0:00:20]} Nf6 {[%emt 0:00:47]} 2. c4 {[%emt 0:00:17]} e6 {[%emt 0:00:48]} 3. Nf3 {[%emt 0:00:27]} d5 {[%emt 0:00:17]} 4. Nc3 {[%emt 0:00:55]} Bb4 {[%emt 0:01:34]} 5. cxd5 {[%emt 0:01:59]} exd5 {[%emt 0:00:09]} 6. Bg5 {[%emt 0:00:08]} h6 {[%emt 0:02:00]} 7. Bh4 {[%emt 0:00:55]} Bf5 {[%emt 0:00:14]} 8. Qb3 {[%emt 0:14:48]} Nc6 {[%emt 0:00:25]} 9. e3 {[%emt 0:06:56]} g5 {[%emt 0:04:21]} 10. Bg3 {[%emt 0:00:40]} Ne4 {[%emt 0:03:02]} (10... O-O $11) 11. Bb5 {[%emt 0:01:21]} (11. Nd2 $1 $16) 11... O-O $11 {[%emt 0:01:53]} 12. O-O {[%emt 0:02:55]} Bxc3 {[%emt 0:02:14]} (12... Nxg3 13. hxg3 Bxc3 14. Bxc6 (14. Qxc3 Ne7 $11) (14. bxc3 Na5 $11) 14... Bxb2 15. Qxb2 $16) 13. bxc3 {[%emt 0:03:19]} Na5 {[%emt 0:21:02]} 14. Qb2 {[%emt 0:02:40]} c6 {[%emt 0:03:15]} 15. Be2 {[%emt 0:01:29]} b5 {[%emt 0:02:36]} 16. Nd2 {[%emt 0:05:30]} Nxg3 {[%emt 0:02:00]} 17. hxg3 {[%emt 0:00:08]} Nc4 {[%emt 0:00:10]} 18. Qc1 {[%emt 0:02:13]} Nb6 {[%emt 0:09:34]} 19. Nb3 {[%emt 0:10:01]} Na4 {[%emt 0:00:30]} 20. Qd2 {[%emt 0:00:40]} Qe7 {[%emt 0:00:20]} 21. Rae1 {[%emt 0:03:20]} a5 {[%emt 0:00:39]} 22. f3 {[%emt 0:02:14]} b4 {[%emt 0:09:06]} 23. c4 {[%emt 0:03:57]} Be6 {[%emt 0:09:28]} 24. cxd5 {[%emt 0:02:07]} Bxd5 {[%emt 0:00:02]} 25. e4 {[%emt 0:02:51]} Be6 {[%emt 0:00:23]} 26. f4 {[%emt 0:01:31]} Nc3 {[%emt 0:05:53]} 27. Bd3 {[%emt 0:06:22]} a4 {[%emt 0:02:18]} 28. Nc5 $1 {[%emt 0:00:22]} Bxa2 {[%emt 0:00:54]} 29. e5 {[%emt 0:06:43]} Rad8 {[%emt 0:09:09]} ({Black should play} 29... a3 $1 $17 30. Qf2 Bd5 31. fxg5 Qxg5) 30. Qf2 $2 {[%emt 0:03:05]} (30. fxg5 $11 {and White is okay.} Qxg5 31. Rf4) 30... Bd5 $2 {[%emt 0:01:05]} (30... a3 $1 $19 31. Ra1 (31. fxg5 Qxg5 32. Ra1 Bd5 $19) 31... Bd5 32. fxg5 Qxg5) 31. g4 $2 {[%emt 0:02:09]} (31. Qb2 $1 $11 {and White stays safe.}) 31... a3 $1 $19 {[%emt 0:01:35]} 32. Qg3 {[%emt 0:01:51] [#]} (32. f5 $142 f6 33. Kh1) 32... f6 {[%emt 0:03:39]} (32... Bc4 $142 $1 {[%mdl 512]} 33. Bxc4 Rxd4) 33. e6 $19 {[%emt 0:00:57]} Ba2 $2 {[%emt 0:03:24]} (33... a2 $1 $17 34. Qf2 Nb5) 34. Qf2 {[%emt 0:04:17]} (34. Qh3 $1 $16 {[%cal Rh3h6]}) 34... b3 {[%emt 0:01:09]} 35. Nd7 {[%emt 0:00:50]} b2 {[%emt 0:01:10]} 36. fxg5 {[%emt 0:00:50]} hxg5 {[%emt 0:00:32]} (36... fxg5 $2 37. Nxf8 b1=Q 38. Ng6 $18 (38. Rxb1 Bxb1 39. Ng6 Qxe6 $14)) 37. Qd2 $2 {[%emt 0:02:32][%mdl 8192]} (37. Nxf8 $11 {and White has nothing to worry.} Rxf8 38. Qf5) 37... Bxe6 $4 {[%emt 0:00:27][%mdl 8192]} (37... Qb4 38. Nxf6+ Kh8 39. Qxg5 Qxd4+ 40. Kh1 Rxf6 41. Qh5+ Kg8 42. Qh7+ Kf8 43. e7+ Ke8 44. Bg6+ Kd7 45. exd8=Q+ Kxd8 46. Re8#) (37... Nd5 $1 $19 {and all is fine. Hoping for ...Nf4.} 38. Nxf8 Rxf8) 38. Nxf8 $18 {[%emt 0:00:22]} b1=Q $2 {[%emt 0:00:43]} (38... b1=N {might work better.} 39. Qe3 (39. Bxb1 Nxb1 40. Qc2 Rxf8 $14) 39... Rxf8) 39. Ng6 $18 {[%emt 0:02:16]} (39. Bxb1 Nxb1 40. Qc1 (40. Rxb1 Rxf8 41. Rfe1 Qd6 $11) 40... Rxf8 $16) (39. Rxe6 Qxf1+ 40. Kxf1 Qa7 41. Qxc3 a2 $18) 39... Qf7 {[%emt 0:00:20]} (39... Ne2+ $2 40. Qxe2 Qbb7 41. Nxe7+) (39... Qd6 $142 40. Bxb1 Nxb1) 40. Bxb1 $18 {[%emt 0:00:00]} (40. Rxb1 Nxb1 41. Qa5 (41. Rxb1 a2 $17) (41. Bxb1 Qa7 $11) 41... Re8 $16) 40... Nxb1 {[%emt 0:00:00] [#]} 41. Qa5 $1 {[%emt 0:06:32]} (41. Rxb1 Qxg6 42. Qa5 Re8 $16) 41... Rc8 {[%emt 0:06:01] [#]} 42. Rxe6 $2 {[%emt 0:13:57]} (42. Qc5 $1 {Ne7+ is the strong threat.} a2 (42... Re8 43. Ne5) 43. Ne7+ Kg7 44. Nxc8) 42... Qxe6 $18 {[%emt 0:00:36]} 43. Rxb1 $2 {[%emt 0:00:04]} (43. Re1 $18 Qxg4 44. Ne7+ Kf7 45. Nxc8 Qxd4+ 46. Kf1 Qd3+ 47. Kf2 (47. Kg1 Qd4+ 48. Kf1 Qd3+ 49. Kg1 Qd4+ $16) 47... Qd4+ 48. Re3 Qf4+ 49. Rf3 Qd4+ 50. Re3 Qf4+ 51. Ke2 (51. Rf3 Qd4+ 52. Re3 $18) 51... Qg4+ 52. Ke1 Qh4+ 53. g3 Qh1+ 54. Kf2 Qh2+ 55. Kf3 Qh1+ 56. Kg4 Qd1+ 57. Rf3 Qd7+ 58. Qf5) 43... Re8 $11 {[%emt 0:06:28]} 44. Qxa3 {[%emt 0:02:45]} Kg7 {[%emt 0:03:24]} 45. Ne5 {[%emt 0:03:51]} fxe5 {[%emt 0:00:05]} 46. Rb7+ {[%emt 0:00:36]} Kg8 $1 {[%emt 0:00:55]} 47. Qh3 {[%emt 0:03:10]} Qg6 {[%emt 0:07:22]} 48. Qb3+ {[%emt 0:01:59]} Qe6 {[%emt 0:00:18]} 49. Qh3 {[%emt 0:00:12]} Qg6 {[%emt 0:00:05]} ({Don't play} 49... Re7 50. Rb8+ Re8 51. Rxe8+ (51. Rb7 Re7 $14) 51... Qxe8 52. Qe3 $14) 50. dxe5 {[%emt 0:00:20]} Rxe5 {[%emt 0:00:05]} 51. Rb8+ {[%emt 0:01:28]} Re8 {[%emt 0:00:34]} 52. Qb3+ {[%emt 0:00:04]} Kf8 {[%emt 0:01:37]} 53. Qf3+ {[%emt 0:00:31]} Kg8 {[%emt 0:00:40]} 54. Qb3+ {[%emt 0:00:41]} Kf8 {[%emt 0:00:05]} 55. Qf3+ {[%emt 0:01:43]} Kg8 {[%emt 0:00:28]} 56. Qb3+ {[%emt 0:00:19]} 1/2-1/2

[Event "Reykjavik Open 2022"]
[Site "Reykjavik"]
[Date "2022.04.10"]
[Round "7.5"]
[White "Fier, Alexandr"]
[Black "Jarmula, Lukasz"]
[Result "1/2-1/2"]
[ECO "C24"]
[WhiteElo "2583"]
[BlackElo "2434"]
[Annotator "TA"]
[PlyCount "88"]
[EventDate "2022.04.06"]
[EventCountry "ISL"]
[SourceTitle "playchess.com"]
[Source "ChessBase"]
[SourceQuality "1"]
[TimeControl "40/5400+30:1800+30"]

{[%evp 11,88,0,11,6,14,13,14,10,14,14,15,0,12,3,26,20,36,7,22,32,28,15,32,0,16,30,20,-20,0,9,5,-12,-2,-4,18,0,8,10,18,0,20,14,1,8,3,0,0,0,0,0,0,0,0,0,0,0,0,0,0,0,0,0,29,0,29,29,29,0,0,0,0,0,0,0,0,0,2,0,2]} 1. e4 {[%emt 0:00:03]} e5 {[%emt 0:00:05]} 2. Bc4 {[%emt 0:00:06]} Nf6 {[%emt 0:00:13]} 3. d3 {[%emt 0:00:05]} Bc5 {[%emt 0:00:25]} 4. Nf3 {[%emt 0:00:07]} d6 {[%emt 0:00:05]} 5. O-O {[%emt 0:00:25]} O-O {[%emt 0:00:27]} 6. c3 {[%emt 0:00:07]} Bb6 {[%emt 0:00:51]} 7. Bg5 {[%emt 0:01:22][%cal Bc1g5,Bg5h4,Bh4g3][%mdl 32] C24: Bishop's Opening: 2...Nf6.} h6 {[%emt 0:01:54]} 8. Bh4 {[%emt 0:00:04]} Nbd7 {[%emt 0:00:20][%cal Bb8d7,Bd7f8,Bf8g6][%mdl 32]} 9. Nbd2 {[%emt 0:00:39]} Re8 {[%emt 0:01:39]} 10. Re1 {[%emt 0:01:19]} Nf8 {[%emt 0:02:54] [#]} 11. d4 $146 {[%emt 0:01:38]} ({Predecessor:} 11. Qb3 Qe7 12. Nf1 Ng6 13. Bg3 Nh5 14. Ne3 Nxg3 15. hxg3 Be6 16. Nd5 {½-½ (16) Lehmann,M (1926)-Kornick,U (1926) Germany 2014}) 11... Ng6 {[%emt 0:00:36]} 12. Bg3 {[%emt 0:00:03]} Nh7 {[%emt 0:05:46]} 13. a4 {[%emt 0:02:12] [#] And now a5 would win.} a6 {[%emt 0:01:26]} 14. Bb3 {[%emt 0:10:58]} Qf6 {[%emt 0:01:30]} 15. Nc4 {[%emt 0:08:07]} Ba7 {[%emt 0:03:01]} 16. Ne3 {[%emt 0:00:46]} c6 {[%emt 0:00:23]} 17. Qc2 {[%emt 0:03:26]} Ng5 {[%emt 0:05:32]} (17... Nf4 $5 {[%cal Rf4g2]}) 18. Nxg5 {[%emt 0:00:24]} hxg5 {[%emt 0:00:47]} 19. Rad1 {[%emt 0:02:27]} Nf4 {[%emt 0:07:48][%cal Re5d4]} 20. dxe5 {[%emt 0:00:28]} dxe5 {[%emt 0:00:21]} 21. Nf5 {[%emt 0:00:30]} Bc5 {[%emt 0:07:56] Against Rd6} 22. a5 {[%emt 0:00:45]} Nh5 {[%emt 0:04:46]} 23. Bc4 {[%emt 0:01:49]} Be6 {[%emt 0:04:32]} 24. Bxe6 {[%emt 0:00:35]} Qxe6 {[%emt 0:03:18]} 25. Qd2 {[%emt 0:01:29]} Qf6 {[%emt 0:05:19]} 26. b4 {[%emt 0:05:11]} Rad8 {[%emt 0:02:18]} 27. Qe2 {[%emt 0:01:39]} Nxg3 {[%emt 0:00:25]} 28. hxg3 {[%emt 0:00:04]} Ba7 {[%emt 0:00:35]} 29. Ne3 {[%emt 0:09:44]} Rxd1 {[%emt 0:03:27]} 30. Rxd1 {[%emt 0:00:03]} Rd8 {[%emt 0:01:47] Prevents Rd7.} 31. Rxd8+ {[%emt 0:08:19]} Qxd8 {[%emt 0:00:09]} 32. Nc4 {[%emt 0:00:03]} Qf6 {[%emt 0:02:49]} 33. Qd2 {[%emt 0:01:05]} g6 {[%emt 0:02:12]} 34. Nb6 {[%emt 0:02:18]} Bxb6 {[%emt 0:01:40]} 35. axb6 $11 {[%emt 0:00:04][%mdl 4096] [#] Endgame Qd7 is the strong threat. KQ-KQ} Qe7 {[%emt 0:00:16] Prevents Qd7.} 36. c4 {[%emt 0:01:59]} f6 {[%emt 0:04:56]} 37. c5 {[%emt 0:00:30]} Kf7 {[%emt 0:00:41]} 38. g4 {[%emt 0:01:10]} Kg7 {[%emt 0:00:51]} 39. g3 {[%emt 0:01:18]} Kf7 {[%emt 0:00:30] The position is equal.} 40. Kg2 {[%emt 0:00:00]} Kg7 {[%emt 0:00:00]} 41. Kf3 {[%emt 0:00:08]} Kf7 {[%emt 0:01:02]} 42. Ke3 {[%emt 0:02:24]} Kg7 {[%emt 0:00:48]} 43. Kf3 {[%emt 0:03:16]} Kf7 {[%emt 0:00:12]} 44. Ke3 {[%emt 0:00:03]} Kg7 {[%emt 0:00:05] A balanced but interesting game.  Weighted Error Value: White=0.07 (flawless) /Black=0.07 (flawless)} 1/2-1/2